Cogmind - Beta 13 @@@ ROGUE MODE // 2024.05.27 @ 08:18:12 Player: Bace Troncons Result: Destroyed by 2R-IW1(R) with Subdweller Beam Cannon Performance ------------- Evolutions (0) 0 Regions Visited (2) 400 Robots Destroyed (10) 50 Value Destroyed (279) 279 Prototype IDs (0) 0 Alien Tech Used (0) 0 Bonus (0) 0 TOTAL SCORE: 729 Bonus ------- None Cogmind --------- Core Integrity 0/250 Matter 191/300 Energy 100/100 System Corruption 0% Temperature Cool (9) Movement Treading (160) Location -10/Subcaves Parts ------- > --- POWER (1) -------- (None) > --- PROPULSION (2) --- Light Treads > --- UTILITY (2) ------ (None) > --- WEAPON (2) ------- Battle Cannon Battle Cannon > --- INVENTORY (5) ---- Ion Engine Battle Rifle Subdweller Machine Gun Peak State ------------ > --- POWER ------------ Light Ion Engine > --- PROPULSION ------- Light Treads Light Treads > --- UTILITY ---------- Scrap Shield > --- WEAPON ----------- Heavy Battle Rifle Battle Cannon > --- INVENTORY -------- Ion Engine Light Treads Battle Rifle Subdweller Machine Gun Battle Cannon [Rating: 13] Favorites ----------- Power Light Ion Engine Engine Light Ion Engine Propulsion Light Treads Treads Light Treads Utility Small Storage Unit Storage Small Storage Unit Protection Light Armor Plating Weapon Battle Cannon Energy Gun Medium Laser Ballistic Gun Assault Rifle Ballistic Cannon Battle Cannon Build | -11 -10 -10 ------- Run | Yrd Mat Sub Slots Evolved . | . . . Power . | . . . Propulsion . | . . . Utility . | . . . Weapon . | . . . Parts Attached 15 | 6 . 9 Power 1 | 1 . . Engine 1 | 1 . . Core . | . . . Reactor . | . . . Propulsion 4 | 2 . 2 Treads 4 | 2 . 2 Leg . | . . . Wheel . | . . . Hover . | . . . Flight . | . . . Utility 3 | 1 . 2 Device . | . . . Storage 1 | 1 . . Processor . | . . . Hackware . | . . . Protection 2 | . . 2 Artifact . | . . . Weapon 7 | 2 . 5 Energy Gun 1 | 1 . . Energy Cannon . | . . . Ballistic Gun 3 | 1 . 2 Ballistic Cannon 3 | . . 3 Launcher . | . . . Special Weapon . | . . . Impact Weapon . | . . . Slashing Weapon . | . . . Piercing Weapon . | . . . Special Melee Weapon . | . . . Unidentified Prototypes . | . . . Parts Lost 5 | . . 5 Power 1 | . . 1 Propulsion 2 | . . 2 Utility 1 | . . 1 Weapon 1 | . . 1 Highest Loss Streak 5 | . . 5 To Critical Strikes . | . . . Average Slot Usage (%) 90 | . 85 93 Engine 13 | . 14 13 Treads 28 | . 28 28 Storage 11 | . 14 10 Protection 7 | . . 10 Energy Gun 6 | . 14 3 Ballistic Gun 9 | . 14 8 Ballistic Cannon 11 | . . 16 Naked Turns . | . . . Heaviest Build 28 | 12 12 28 Greatest Support 40 | 40 40 40 Greatest Overweight (x) 1 | 1 . . Average Overweight (x) . | . . . Largest Inventory Capacity 8 | 8 8 8 Average Capacity 7 | 7 8 7 Most Carried 8 | 4 4 8 Average Carried 4 | 2 4 5 Final Capacity 8 | 8 8 5 Final Carried 4 | 4 4 3 Class Distribution -------------------- 100% | Mutant Dominant Class ---------------- Mutant | -10/Materials Mutant | -10/Subcaves Resources | -11 -10 -10 ----------- Run | Yrd Mat Sub Matter Collected 577 | 207 . 370 Remotely . | . . . Salvage Created 203 | . . 203 Parts 27 | . . 27 Haulers Intercepted . | . . . Recyclers Shooed . | . . . Parts Field Recycled . | . . . Retrieved Matter . | . . . Parts Self-Destructed 21 | . . 21 Prevented . | . . . Kills | -11 -10 -10 ------- Run | Yrd Mat Sub Combat Hostiles Destroyed 10 | . . 10 Guns 6 | . . 6 Cannons 4 | . . 4 Classes Destroyed 4 | . . 4 Swarmer 4 | . . 4 Grunt 1 | . . 1 Sentry 1 | . . 1 Subdweller 4 | . . 4 Best Kill Streak 3 | . . 3 Combat Bots Only 3 | . . 3 Max Kills in Single Turn 2 | . . 2 Gunslinging 1 | . . 1 Exploded . | . . . Melee . | . . . Uniques/NPCs Destroyed . | . . . Combat | -11 -10 -10 -------- Run | Yrd Mat Sub Hostile Shots Fired 90 | . . 90 Missed 20 | . . 20 Damage Taken 1247 | . . 1247 Core 259 | . . 259 Absorbed by Shields . | . . . Core Remaining (%) 100 | 100 . . Volleys Fired 46 | . 1 45 Largest 2 | . 2 2 Hottest 78 | . 70 78 Shots Fired 92 | . 2 90 Gun 36 | . 2 34 Cannon 56 | . . 56 Launcher . | . . . Special . | . . . Kinetic 83 | . 1 82 Thermal 9 | . 1 8 Explosive . | . . . Electromagnetic . | . . . Robot Hit Streak 8 | . . 8 Robot Miss Streak 3 | . 2 3 Penetration Max . | . . . Secondary Targets 2 | . . 2 Max Gunslinging Chain 1 | . . 1 Shots Hit Robots 41 | . . 41 Core Hits 17 | . . 17 Critical Kills . | . . . Critical Parts Destroyed . | . . . Critical Strikes 1 | . . 1 Burn 1 | . . 1 Melee Attacks . | . . . Impact . | . . . Slashing . | . . . Piercing . | . . . Sneak Attacks . | . . . Combat Hostiles . | . . . Follow-up Attacks . | . . . Damage Inflicted 802 | . . 802 Guns 314 | . . 314 Cannons 488 | . . 488 Explosions . | . . . Melee . | . . . Ramming . | . . . Kinetic 712 | . . 712 Thermal 90 | . . 90 Explosive . | . . . Electromagnetic . | . . . Impact . | . . . Slashing . | . . . Piercing . | . . . Highest Corruption . | . . . Average Corruption . | . . . Corruption Purged . | . . . Corruption Blocked . | . . . Overload Shots . | . . . Overflow Damage . | . . . Projectiles . | . . . Explosions . | . . . Melee . | . . . Knockbacks 8 | . . 8 Impact . | . . . Kinetic 8 | . . 8 Secondary . | . . . Self-Inflicted Damage . | . . . Shots . | . . . Rammed . | . . . Targets Rammed . | . . . Kicked . | . . . Crushed . | . . . Highest Temperature 9 | . 9 . Average Temperature 6 | . 6 . Received Heat Transfer 306 | . . 306 Siege Activations . | . . . Robots Corrupted . | . . . Combat Hostiles . | . . . Parts Fried . | . . . Impact Corruptions . | . . . Robots Melted . | . . . Combat Hostiles . | . . . Parts Melted . | . . . Heat Transferred 333 | . . 333 Parts Sabotaged . | . . . Parts Stolen . | . . . Parts Stripped . | . . . Power Chain Reactions . | . . . Alert | -11 -10 -10 ------- Run | Yrd Mat Sub Peak Influence 21 | . 21 . Initial . | . . . Average 15 | . 17 . Maximum Alert Level . | . . . Low Security (%) 100 | 100 100 . Level 1 . | . . . Level 2 . | . . . Level 3 . | . . . Level 4 . | . . . Level 5 . | . . . High Security . | . . . Max Security . | . . . Squads Dispatched . | . . . Investigation . | . . . Extermination . | . . . Reinforcement . | . . . Assault . | . . . Garrison . | . . . Intercept . | . . . Searches Triggered . | . . . Construction Impeded . | . . . Haulers Reinforced . | . . . Active Scanning Responses . | . . . Cargo Convoy Interrupts . | . . . Stealth | -11 -10 -10 --------- Run | Yrd Mat Sub Distress Signals . | . . . Communications Jammed . | . . . Distress Signals . | . . . Times Spotted 18 | . 1 17 Peak Tracking Total 3 | . 3 3 Tactical Retreats 2 | . . 2 Traps | -11 -10 -10 ------- Run | Yrd Mat Sub Traps Triggered . | . . . Indirectly . | . . . Trap Hack Attempts . | . . . Triggered . | . . . Disarmed . | . . . Reprogrammed . | . . . Reused . | . . . Traps Extracted . | . . . Installed . | . . . Triggered . | . . . Machines | -11 -10 -10 ---------- Run | Yrd Mat Sub Machines Disabled . | . . . Max in Single Turn . | . . . Machines Repaired . | . . . Machines Dismantled . | . . . Machines Sabotaged . | . . . Overloaded Fab Kills . | . . . Hacking | -11 -10 -10 --------- Run | Yrd Mat Sub Machines Accessed 1 | . 1 . Terminals 1 | . 1 . Fabricators . | . . . Repair Stations . | . . . Recycling Units . | . . . Scanalyzers . | . . . Garrison Access . | . . . Total Hacks 1 | . 1 . Successful 1 | . 1 . Failed . | . . . Catastrophic . | . . . Database Lockouts . | . . . Manual 1 | . 1 . Terminals 1 | . 1 . Fabricators . | . . . Repair Stations . | . . . Recycling Units . | . . . Scanalyzers . | . . . Garrison Access . | . . . Terminal Hacks 1 | . 1 . Terminal Index 1 | . 1 . Fabricator Hacks . | . . . Repair Station Hacks . | . . . Recycling Unit Hacks . | . . . Scanalyzer . | . . . Garrison Access Hacks . | . . . Unauthorized Hacks . | . . . Terminals . | . . . Fabricators . | . . . Repair Stations . | . . . Recycling Units . | . . . Scanalyzers . | . . . Garrison Access . | . . . Data Cores Recovered . | . . . Used . | . . . Hacking Detections . | . . . Full Trace Events . | . . . Feedback Events . | . . . Feedback Blocked . | . . . Robot Schematics Acquired . | . . . Robots Built . | . . . Authchips . | . . . Time . | . . . Total Robot Build Rating . | . . . Part Schematics Acquired . | . . . Parts Built . | . . . Authchips . | . . . Time . | . . . Total Part Build Rating . | . . . Parts Repaired . | . . . Time . | . . . Parts Recycled . | . . . Recycled Matter . | . . . Retrieved Matter . | . . . Retrieved Components . | . . . Parts Scanalyzed . | . . . Part Schematics Acquired . | . . . Parts Damaged . | . . . Bothacking | -11 -10 -10 ------------ Run | Yrd Mat Sub Used RIF Installer . | . . . Robots Hacked . | . . . Non-combat . | . . . Combat . | . . . Robot Hacks Applied . | . . . Relay Couplers Released . | . . . Fabnet Peak Effective % . | . . . Robots Rewired . | . . . Allies Hacked . | . . . Hacks Repelled . | . . . Allies | -11 -10 -10 -------- Run | Yrd Mat Sub Total Allies . | . . . Largest Group . | . . . Highest-Rated Group . | . . . Highest-Rated Ally . | . . . Total Orders . | . . . Ally Attacks . | . . . Total Damage . | . . . Kills . | . . . Allies Corrupted . | . . . Allies Melted . | . . . Intel | -11 -10 -10 ------- Run | Yrd Mat Sub Robot Analysis Total . | . . . Derelict Logs Recovered 1 | . . 1 Drone Launches . | . . . Drone Recoveries . | . . . Exploration | -11 -10 -10 ------------- Run | Yrd Mat Sub Turns Passed 1263 | 62 344 857 Spaces Moved 484 | 33 32 419 Core 3 | 3 . . Treads 481 | 30 32 419 Legs . | . . . Wheels . | . . . Hover . | . . . Flight . | . . . Fastest Speed 50 | 50 160 160 Average Speed 159 | 151 160 160 Slowest Speed 160 | 160 160 160 Overloaded Moves . | . . . Propulsion Burnouts . | . . . Robots Hopped . | . . . Cave-ins Triggered . | . . . Exploration Rate (%) 11 | 4 8 22 Regions Visited 2 Branch Regions 1 Pre-discovered Areas 1 | . . 1 Known Exits Taken . | . . . Unknown Exits Taken 2 | 1 1 . Scrap Searched 7 | . . 7 Spaces Dug . | . . . Terrain Destroyed 1 | . . 1 Melee . | . . . Projectile 1 | . . 1 AOE . | . . . Terrain Rammed . | . . . Walls Destroyed . | . . . Machines Disabled . | . . . Actions | -11 -10 -10 --------- Run | Yrd Mat Sub Total 885 | 42 323 520 Wait 314 | . 291 23 Move 482 | 32 31 419 Hop . | . . . Pick Up 13 | 4 . 9 Fast Attach 8 | 6 . 2 Attach 3 | . . 3 Detach 1 | . . 1 Swap 4 | . . 4 Drop 11 | . . 11 Fire 46 | . 1 45 Melee . | . . . Ram . | . . . Kick . | . . . Crush . | . . . Escape Stasis . | . . . Rewire . | . . . Trap . | . . . Miscellaneous 3 | . . 3 Route ------- -11/Scrapyard -10/Materials -10/Subcaves (discovered 1 exit: [*Mat]) History --------- Turn | Location | Event 24 | -11/Scrapyard | Discovered new exit (range 16) 63 | -11/Scrapyard | Entered Materials 311 | -10/Materials | Build established: Mutant 366 | -10/Materials | Discovered new exit (range 7) 407 | -10/Materials | Entered Subcaves 663 | -10/Subcaves | Shifting Twisted Machinery released Battle Cannon 666 | -10/Subcaves | Shifting Twisted Machinery released Sub. Machine Gun 917 | -10/Subcaves | Ambushed by angry Subdweller bent on revenge 1045 | -10/Subcaves | Disturbed a concealed Subdweller 1170 | -10/Subcaves | Learned location of Zion (-6) 1211 | -10/Subcaves | Discovered new exit (range 13) 1222 | -10/Subcaves | A Subdweller sparked back to life 1222 | -10/Subcaves | A Subdweller sparked back to life 1222 | -10/Subcaves | A Subdweller sparked back to life 1252 | -10/Subcaves | Core integrity fell below 50% 1263 | -10/Subcaves | Core integrity fell below 20% 1264 | -10/Subcaves | Destroyed by 2R-IW1(R) with Subdweller Beam Cannon Last Messages --------------- 01187_ Acquired 3 matter. 01211_ EXIT=FOUND 01222_ H6-9OT(R) creaks and sparks as it begins to move. 01222_ YS-CUY(R) creaks and sparks as it begins to move. 01222_ 44-VLJ(R) creaks and sparks as it begins to move. 01242_ H6-9OT(R) destroyed. 01242_ YS-CUY(R) knocked back. 01244_ Scrap Shield destroyed. 01245_ 2R-IW1(R): "SUBMAD!" 01245_ YS-CUY(R) knocked back. 01248_ Hvy. Battle Rifle destroyed. 01249_ YS-CUY(R) knocked back. 01253_ Lgt. Treads destroyed. 01255_ Lgt. Ion Engine destroyed. 01256_ 44-VLJ(R) knocked back. 01260_ Lgt. Treads destroyed. 01262_ 44-VLJ(R) destroyed. Map ----- +----------------------------------------------------+ | ????????????# [ ### ??# ##??????????????? | | ????????????## ### #### ###???????????????? | | ?????????????## #?#### #?????????????????? | | ?????????????## ##### ####??????????????? | | ???????????### #### # # # ##?????????????? | | ???????????# # ##=%## ##????????????? | | ???????????# #"[%%## ##???????????? | | ???????????# #""%|"#! ## # ##??????????? | | ???????????# ##%"" #[## ### #??????????? | | ???????????# #%###% # ### #??????????? | | #????????# [ ]%!* ### ##??????????? | | ##???# ]! ## ###???????????? | | ##% % #### #?????????????? | | % !%[ %% # ## #?? ?????????????? | | ???#&%% ""# ### # #????????????? | | ???#### #?##### ### #????????????? | | ??????# "### # ### ????????????? | | ?????# #"" #### ## ### ????????????? | | ???### """ ### #?# " #? ###?? ???????????? | | ???# # #"#"# ""#" # " #? ##???? #???????????? | | ??## ##### ""##" #? #?###??????##???????????? | | ??# ## # """"" ##?#& ##??????????????????????? | | ??# """"""#?##*& ####???????????????????? | | ??## #"##?#%%% ##??????????????????? | | ??## #### ##???##&![ ##?????????????????? | | ## ###???###???##R[% @ #?????????????????? | | ############ %### #?????????????????? | | ### # ##R #??? ##?????????????????? | | #????##??????????????????? | | = ] ## #???????????????????? | | ######### ##### " #???????????????????? | | #???????# #??# " # #??????????????????? | | ????????## ##??# #????????????????? | | ?????????? ???" & ##????????????????? | | ?????????## #??#& "% ##?????????????????? | | #???????????# ##?? "" # #?????????????????? | | ????????????# ???# ? #????????????????? | | ???????????? ???## ?#????????????????? | | ????????????# ????#### ## # ?????????????????? | | ????????????# ???????? < #?##??????????????????? | | ????????????# ???????# #?????????????????????? | | ????????????# ## ????????????????????????????????? | | ?????????????#??#????????????????????????????????? | | ?????????????????????????????????????????????????? | | ?????????????????????????????????????????????????? | | ?????????????????????????????????????????????????? | | ?????????????????????????????????????????????????? | | ?????????????????????????????????????????????????? | | ?????????????????????????????????????????????????? | | ?????????????????????????????????????????????????? | +----------------------------------------------------+ Best States ------------- Heat Dissipation 25 Energy Generation 10 Energy Capacity 125 Matter Stores 300 Matter Capacity 300 Sight Range 16 Terrain Scan Density 10 Armor Coverage 800 Evasion (%) 40 Recoil Reduction 2 Item Schematics ----------------- None Robot Schematics ------------------ None Fabricated ------------ Nothing Alien Tech Used ----------------- None Achievements -------------- None Challenges ------------ None Game ------ Seed SniperHoverConstruct Manual? 0 Play Time 00:10:39 Cumulative 85.1 hours Start 2024.05.27 @ 08:10:23 End 2024.05.27 @ 08:18:12 Sessions 1 Manual Loads 0 Difficulty Rogue Special Mode None Game No. 136 Rogue 136 Adventurer 0 Explorer 0 Win Type - Total 1 Types 1/0/0/0/0/0/0/0/0 Lore% 40 Gallery% 44 Achievement% 32 Wizard Run 0 Options --------- Layout 1 ASCII 0 Keyboard 1 Movement Numpad Keybinds 0 Fullscreen 1 Font 24/Smallcaps Map View 50x35 Zoom Use 0% Tactical HUD 1 Map Filters NONE Filters NONE Steam 1 RUN: 8a1187f6-a7db-4e0b-a0c0-08cf362070c6